[Event "December 12 Late 2023"]
[Site "https://www.chess.com"]
[Date "2023.12.12"]
[Round "2"]
[White "Kostiukov, Alexandr"]
[Black "Zwirs, Nico"]
[Result "0-1"]
[Board "91"]
[TimeControl "180+1"]
[WhiteFideId "14108100"]
[BlackFideId "1036432"]
[WhiteElo "2389"]
[BlackElo "2852"]
[WhiteTeam "UKR"]
[BlackTeam "NED"]
[WhiteClock "0:00:00"]
[BlackClock "0:00:20"]

1. g3 {[%clk 0:02:51]}  d5 {[%clk 0:02:59]} 2. Bg2 {[%clk 0:02:50]}  c6 {[%clk 0:02:59]} 3. d3 {[%clk 0:02:50]}  Nd7 {[%clk 0:02:59]} 4. e4 {[%clk 0:02:50]}  Ngf6 {[%clk 0:02:59]} 5. Qe2 {[%clk 0:02:49]}  e5 {[%clk 0:02:57]} 6. Nf3 {[%clk 0:02:48]}  Bd6 {[%clk 0:02:56]} 7. O-O {[%clk 0:02:46]}  O-O {[%clk 0:02:56]} 8. c4 {[%clk 0:02:46]}  d4 {[%clk 0:02:54]} 9. Nh4 {[%clk 0:02:44]}  Re8 {[%clk 0:02:53]} 10. Nd2 {[%clk 0:02:36]}  Bf8 {[%clk 0:02:52]} 11. h3 {[%clk 0:02:34]}  a5 {[%clk 0:02:48]} 12. Ndf3 {[%clk 0:02:18]}  Nc5 {[%clk 0:02:47]} 13. g4 {[%clk 0:02:14]}  g6 {[%clk 0:02:34]} 14. b3 {[%clk 0:02:04]}  Qc7 {[%clk 0:02:23]} 15. Bg5 {[%clk 0:02:01]}  Bg7 {[%clk 0:02:21]} 16. Ne1 {[%clk 0:01:49]}  Ne6 {[%clk 0:02:19]} 17. Bd2 {[%clk 0:01:48]}  Nd7 {[%clk 0:02:14]} 18. Nhf3 {[%clk 0:01:41]}  Qd6 {[%clk 0:02:09]} 19. Nc2 {[%clk 0:01:29]}  b5 {[%clk 0:02:08]} 20. Ng5 {[%clk 0:01:14]}  Nf4 {[%clk 0:02:04]} 21. Bxf4 {[%clk 0:01:12]}  exf4 {[%clk 0:02:05]} 22. Nf3 {[%clk 0:01:02]}  bxc4 {[%clk 0:02:04]} 23. bxc4 {[%clk 0:01:01]}  Ba6 {[%clk 0:01:57]} 24. Qd2 {[%clk 0:00:52]}  Nc5 {[%clk 0:01:50]} 25. Rfe1 {[%clk 0:00:45]}  Ne6 {[%clk 0:01:43]} 26. e5 {[%clk 0:00:32]}  Qd7 {[%clk 0:01:38]} 27. Rab1 {[%clk 0:00:23]}  Bf8 {[%clk 0:01:30]} 28. Re4 {[%clk 0:00:16]}  Bc5 {[%clk 0:01:28]} 29. g5 {[%clk 0:00:12]}  Red8 {[%clk 0:01:26]} 30. Rbe1 {[%clk 0:00:12]}  Qe7 {[%clk 0:01:19]} 31. h4 {[%clk 0:00:12]}  Bc8 {[%clk 0:01:07]} 32. Bh3 {[%clk 0:00:11]}  a4 {[%clk 0:00:47]} 33. Bxe6 {[%clk 0:00:10]}  Bxe6 {[%clk 0:00:48]} 34. Qxf4 {[%clk 0:00:09]}  Bf5 {[%clk 0:00:45]} 35. h5 {[%clk 0:00:06]}  Bxe4 {[%clk 0:00:44]} 36. Rxe4 {[%clk 0:00:07]}  Rab8 {[%clk 0:00:42]} 37. Ncxd4 {[%clk 0:00:06]}  Bxd4 {[%clk 0:00:40]} 38. Nxd4 {[%clk 0:00:06]}  Rb6 {[%clk 0:00:34]} 39. h6 {[%clk 0:00:03]}  c5 {[%clk 0:00:32]} 40. Nb5 {[%clk 0:00:02]}  Rxd3 {[%clk 0:00:29]} 41. e6 {[%clk 0:00:00]}  fxe6 {[%clk 0:00:20]} 0-1

[Event "December 12 Late 2023"]
[Site "https://www.chess.com"]
[Date "2023.12.12"]
[Round "2"]
[White "Hong, Andrew"]
[Black "Semenenko, Dmytry"]
[Result "1-0"]
[Board "93"]
[TimeControl "180+1"]
[WhiteFideId "2099438"]
[BlackFideId "14118645"]
[WhiteElo "2825"]
[BlackElo "2380"]
[WhiteTeam "USA"]
[BlackTeam "UKR"]
[WhiteClock "0:00:20"]
[BlackClock "0:00:24"]

1. d4 {[%clk 0:03:00]}  d5 {[%clk 0:02:59]} 2. Bf4 {[%clk 0:03:00]}  Nf6 {[%clk 0:02:59]} 3. e3 {[%clk 0:03:00]}  c5 {[%clk 0:02:59]} 4. c3 {[%clk 0:03:00]}  Nc6 {[%clk 0:02:59]} 5. Nd2 {[%clk 0:03:00]}  e6 {[%clk 0:03:00]} 6. Ngf3 {[%clk 0:03:00]}  Bd6 {[%clk 0:03:00]} 7. Bd3 {[%clk 0:02:59]}  Bxf4 {[%clk 0:02:57]} 8. exf4 {[%clk 0:02:59]}  cxd4 {[%clk 0:02:55]} 9. cxd4 {[%clk 0:03:00]}  O-O {[%clk 0:02:53]} 10. O-O {[%clk 0:03:00]}  b6 {[%clk 0:02:46]} 11. Rc1 {[%clk 0:02:58]}  Bb7 {[%clk 0:02:46]} 12. Qa4 {[%clk 0:02:56]}  Qd6 {[%clk 0:02:42]} 13. Ne5 {[%clk 0:02:52]}  Rfc8 {[%clk 0:02:38]} 14. Bb5 {[%clk 0:02:46]}  Ne7 {[%clk 0:02:30]} 15. Ba6 {[%clk 0:02:31]}  Bxa6 {[%clk 0:02:24]} 16. Qxa6 {[%clk 0:02:32]}  Ne4 {[%clk 0:02:01]} 17. Nb3 {[%clk 0:01:58]}  f6 {[%clk 0:01:56]} 18. Nd3 {[%clk 0:01:56]}  Qd7 {[%clk 0:01:49]} 19. Rfe1 {[%clk 0:01:26]}  Nf5 {[%clk 0:01:39]} 20. g3 {[%clk 0:01:21]}  Ned6 {[%clk 0:01:34]} 21. Kg2 {[%clk 0:01:07]}  Rxc1 {[%clk 0:01:14]} 22. Rxc1 {[%clk 0:01:05]}  Rc8 {[%clk 0:01:15]} 23. Rxc8+ {[%clk 0:01:02]}  Nxc8 {[%clk 0:01:15]} 24. Ne1 {[%clk 0:00:43]}  Ncd6 {[%clk 0:01:13]} 25. Nf3 {[%clk 0:00:41]}  Nc4 {[%clk 0:00:59]} 26. a4 {[%clk 0:00:34]}  Nxb2 {[%clk 0:00:57]} 27. a5 {[%clk 0:00:34]}  Nc4 {[%clk 0:00:54]} 28. axb6 {[%clk 0:00:31]}  axb6 {[%clk 0:00:54]} 29. Qa8+ {[%clk 0:00:28]}  Kf7 {[%clk 0:00:54]} 30. Nc1 {[%clk 0:00:21]}  Ncd6 {[%clk 0:00:39]} 31. Nd3 {[%clk 0:00:21]}  Qb7 {[%clk 0:00:36]} 32. Qd8 {[%clk 0:00:20]}  Ne4 {[%clk 0:00:29]} 33. Nde5+ {[%clk 0:00:19]}  fxe5 {[%clk 0:00:24]} 34. Nxe5# {[%clk 0:00:20]} 1-0

[Event "December 12 Late 2023"]
[Site "https://www.chess.com"]
[Date "2023.12.12"]
[Round "2"]
[White "Fier, Alexandr"]
[Black "Buenafe Moya, Javier"]
[Result "1-0"]
[Board "96"]
[TimeControl "180+1"]
[WhiteFideId "2107139"]
[BlackFideId "2206412"]
[WhiteElo "2724"]
[BlackElo "2373"]
[WhiteTeam "BRA"]
[BlackTeam "ESP"]
[WhiteClock "0:01:58"]
[BlackClock "0:00:03"]

1. Nf3 {[%clk 0:02:56]}  Nf6 {[%clk 0:02:58]} 2. g3 {[%clk 0:02:57]}  g6 {[%clk 0:02:57]} 3. Bg2 {[%clk 0:02:58]}  Bg7 {[%clk 0:02:57]} 4. O-O {[%clk 0:02:59]}  O-O {[%clk 0:02:57]} 5. d3 {[%clk 0:02:59]}  c5 {[%clk 0:02:54]} 6. e4 {[%clk 0:02:58]}  Nc6 {[%clk 0:02:53]} 7. Nh4 {[%clk 0:02:57]}  d6 {[%clk 0:02:53]} 8. f4 {[%clk 0:02:57]}  Bg4 {[%clk 0:02:51]} 9. Qd2 {[%clk 0:02:56]}  Be6 {[%clk 0:02:39]} 10. f5 {[%clk 0:02:55]}  gxf5 {[%clk 0:02:34]} 11. Nxf5 {[%clk 0:02:54]}  Bxf5 {[%clk 0:02:31]} 12. Rxf5 {[%clk 0:02:55]}  e6 {[%clk 0:02:30]} 13. Rg5 {[%clk 0:02:53]}  Kh8 {[%clk 0:02:30]} 14. Rxg7 {[%clk 0:02:53]}  Kxg7 {[%clk 0:02:28]} 15. Qh6+ {[%clk 0:02:54]}  Kh8 {[%clk 0:02:27]} 16. Bg5 {[%clk 0:02:54]}  Ng8 {[%clk 0:02:25]} 17. Qh4 {[%clk 0:02:53]}  f6 {[%clk 0:02:25]} 18. Be3 {[%clk 0:02:52]}  Qe7 {[%clk 0:02:24]} 19. Nc3 {[%clk 0:02:52]}  Rf7 {[%clk 0:02:22]} 20. Rf1 {[%clk 0:02:52]}  Re8 {[%clk 0:02:19]} 21. Bh3 {[%clk 0:02:52]}  a6 {[%clk 0:02:17]} 22. Bg4 {[%clk 0:02:46]}  Rg7 {[%clk 0:02:13]} 23. Bh5 {[%clk 0:02:45]}  Rf8 {[%clk 0:02:13]} 24. Kh1 {[%clk 0:02:44]}  b5 {[%clk 0:02:12]} 25. Ne2 {[%clk 0:02:43]}  f5 {[%clk 0:02:02]} 26. Qh3 {[%clk 0:02:42]}  fxe4 {[%clk 0:02:02]} 27. Rxf8 {[%clk 0:02:43]}  Qxf8 {[%clk 0:02:01]} 28. dxe4 {[%clk 0:02:41]}  Qf6 {[%clk 0:02:00]} 29. c3 {[%clk 0:02:40]}  Ne5 {[%clk 0:01:56]} 30. Nf4 {[%clk 0:02:40]}  Nc4 {[%clk 0:01:44]} 31. Bg1 {[%clk 0:02:39]}  Qe5 {[%clk 0:01:43]} 32. Bf3 {[%clk 0:02:34]}  Nd2 {[%clk 0:01:42]} 33. Bg2 {[%clk 0:02:34]}  Nxe4 {[%clk 0:01:41]} 34. Nxe6 {[%clk 0:02:35]}  Rf7 {[%clk 0:01:32]} 35. Nf4 {[%clk 0:02:34]}  Rg7 {[%clk 0:01:25]} 36. Nd3 {[%clk 0:02:31]}  Ng5 {[%clk 0:01:21]} 37. Qc8 {[%clk 0:02:28]}  Qe6 {[%clk 0:01:15]} 38. Qxa6 {[%clk 0:02:26]}  Nh3 {[%clk 0:01:07]} 39. Qxb5 {[%clk 0:02:17]}  Nxg1 {[%clk 0:01:06]} 40. Kxg1 {[%clk 0:02:18]}  Qe3+ {[%clk 0:01:04]} 41. Kh1 {[%clk 0:02:19]}  Rf7 {[%clk 0:01:00]} 42. Qc4 {[%clk 0:02:14]}  Nh6 {[%clk 0:00:48]} 43. Nf4 {[%clk 0:02:09]}  Qc1+ {[%clk 0:00:46]} 44. Bf1 {[%clk 0:02:10]}  Ng4 {[%clk 0:00:42]} 45. Qe2 {[%clk 0:02:02]}  Ne3 {[%clk 0:00:25]} 46. Kg1 {[%clk 0:02:02]}  Nxf1 {[%clk 0:00:23]} 47. Qe8+ {[%clk 0:02:03]}  Kg7 {[%clk 0:00:22]} 48. Nh5+ {[%clk 0:02:03]}  Kg6 {[%clk 0:00:21]} 49. Qg8+ {[%clk 0:02:04]}  Kxh5 {[%clk 0:00:19]} 50. Qxf7+ {[%clk 0:02:04]}  Kg4 {[%clk 0:00:18]} 51. Qxf1 {[%clk 0:02:04]}  Qxb2 {[%clk 0:00:17]} 52. Qf4+ {[%clk 0:02:04]}  Kh5 {[%clk 0:00:17]} 53. Qxd6 {[%clk 0:02:03]}  Qxc3 {[%clk 0:00:16]} 54. Qd5+ {[%clk 0:02:02]}  Kg6 {[%clk 0:00:14]} 55. Kf2 {[%clk 0:01:58]}  c4 {[%clk 0:00:15]} 56. Ke2 {[%clk 0:01:57]}  Qb2+ {[%clk 0:00:15]} 57. Kd1 {[%clk 0:01:57]}  c3 {[%clk 0:00:15]} 58. Qd3+ {[%clk 0:01:57]}  Kg5 {[%clk 0:00:14]} 59. Qc2 {[%clk 0:01:57]}  Qa1+ {[%clk 0:00:13]} 60. Ke2 {[%clk 0:01:57]}  Qg1 {[%clk 0:00:12]} 61. Kd3 {[%clk 0:01:57]}  h5 {[%clk 0:00:05]} 62. Qxc3 {[%clk 0:01:52]}  Qxh2 {[%clk 0:00:04]} 63. Qd2+ {[%clk 0:01:53]}  Qxd2+ {[%clk 0:00:03]} 64. Kxd2 {[%clk 0:01:53]}  Kg4 {[%clk 0:00:04]} 65. a4 {[%clk 0:01:54]}  Kxg3 {[%clk 0:00:05]} 66. a5 {[%clk 0:01:55]}  h4 {[%clk 0:00:05]} 67. a6 {[%clk 0:01:56]}  h3 {[%clk 0:00:06]} 68. a7 {[%clk 0:01:57]}  Kg2 {[%clk 0:00:06]} 69. a8=Q+ {[%clk 0:01:58]}  Kg1 {[%clk 0:00:07]} 70. Qg8+ {[%clk 0:01:57]}  Kf1 {[%clk 0:00:06]} 71. Qf7+ {[%clk 0:01:57]}  Kg1 {[%clk 0:00:05]} 72. Qg6+ {[%clk 0:01:58]}  Kf1 {[%clk 0:00:06]} 73. Qf5+ {[%clk 0:01:58]}  Kg2 {[%clk 0:00:06]} 74. Qg4+ {[%clk 0:01:59]}  Kh2 {[%clk 0:00:07]} 75. Ke2 {[%clk 0:01:59]}  Kh1 {[%clk 0:00:03]} 76. Kf2 {[%clk 0:01:58]} 1-0

[Event "December 12 Late 2023"]
[Site "https://www.chess.com"]
[Date "2023.12.12"]
[Round "2"]
[White "Rian, Kapriaga"]
[Black "Wu, Derek"]
[Result "0-1"]
[Board "98"]
[TimeControl "180+1"]
[WhiteFideId "7103263"]
[BlackFideId "30914558"]
[WhiteElo "2361"]
[BlackElo "2682"]
[WhiteTeam "INA"]
[BlackTeam "USA"]
[WhiteClock "0:00:00"]
[BlackClock "0:01:18"]

1. d4 {[%clk 0:03:00]}  e6 {[%clk 0:02:59]} 2. Nf3 {[%clk 0:03:00]}  Nf6 {[%clk 0:02:57]} 3. Bf4 {[%clk 0:03:00]}  d5 {[%clk 0:02:56]} 4. e3 {[%clk 0:03:00]}  c5 {[%clk 0:02:55]} 5. Nbd2 {[%clk 0:02:59]}  Bd6 {[%clk 0:02:55]} 6. Bg3 {[%clk 0:02:57]}  O-O {[%clk 0:02:53]} 7. c3 {[%clk 0:02:57]}  Qc7 {[%clk 0:02:53]} 8. Bd3 {[%clk 0:02:56]}  Nbd7 {[%clk 0:02:52]} 9. O-O {[%clk 0:02:51]}  Bxg3 {[%clk 0:02:50]} 10. hxg3 {[%clk 0:02:50]}  e5 {[%clk 0:02:50]} 11. dxe5 {[%clk 0:02:50]}  Nxe5 {[%clk 0:02:51]} 12. Nxe5 {[%clk 0:02:45]}  Qxe5 {[%clk 0:02:52]} 13. Re1 {[%clk 0:02:33]}  Bg4 {[%clk 0:02:50]} 14. Qc2 {[%clk 0:02:32]}  Rfd8 {[%clk 0:02:44]} 15. b4 {[%clk 0:02:17]}  Rac8 {[%clk 0:02:38]} 16. bxc5 {[%clk 0:02:09]}  Rxc5 {[%clk 0:02:39]} 17. Rac1 {[%clk 0:02:08]}  Rdc8 {[%clk 0:02:29]} 18. c4 {[%clk 0:02:07]}  Be6 {[%clk 0:02:22]} 19. Nb3 {[%clk 0:02:06]}  R5c7 {[%clk 0:02:17]} 20. c5 {[%clk 0:02:03]}  Qh5 {[%clk 0:02:09]} 21. Be2 {[%clk 0:01:57]}  Bg4 {[%clk 0:02:09]} 22. Bd3 {[%clk 0:01:52]}  b6 {[%clk 0:01:58]} 23. Ba6 {[%clk 0:01:49]}  Bf5 {[%clk 0:01:57]} 24. Qd1 {[%clk 0:01:23]}  Ng4 {[%clk 0:01:57]} 25. Bxc8 {[%clk 0:01:15]}  Qh2+ {[%clk 0:01:55]} 26. Kf1 {[%clk 0:01:14]}  Bxc8 {[%clk 0:01:42]} 27. Qxd5 {[%clk 0:00:52]}  Ba6+ {[%clk 0:01:40]} 28. Rc4 {[%clk 0:00:52]}  Bxc4+ {[%clk 0:01:27]} 29. Qxc4 {[%clk 0:00:51]}  h5 {[%clk 0:01:23]} 30. Qe4 {[%clk 0:00:34]}  bxc5 {[%clk 0:01:17]} 31. Rd1 {[%clk 0:00:28]}  Qh1+ {[%clk 0:01:16]} 32. Ke2 {[%clk 0:00:27]}  Qxd1+ {[%clk 0:01:17]} 33. Kxd1 {[%clk 0:00:24]}  Nxf2+ {[%clk 0:01:17]} 34. Ke2 {[%clk 0:00:24]}  Nxe4 {[%clk 0:01:18]} 35. Kf3 {[%clk 0:00:21]}  c4 {[%clk 0:01:17]} 36. Kxe4 {[%clk 0:00:19]}  cxb3 {[%clk 0:01:17]} 37. axb3 {[%clk 0:00:20]}  Rb7 {[%clk 0:01:17]} 38. Kd4 {[%clk 0:00:18]}  Rxb3 {[%clk 0:01:17]} 39. Kc4 {[%clk 0:00:18]}  Rxe3 {[%clk 0:01:17]} 40. g4 {[%clk 0:00:18]}  hxg4 {[%clk 0:01:17]} 41. g3 {[%clk 0:00:19]}  Rxg3 {[%clk 0:01:18]} 42. Kb5 {[%clk 0:00:19]}  Rc3 {[%clk 0:01:18]} 43. Ka6 {[%clk 0:00:00]}  f5 {[%clk 0:01:18]} 0-1

[Event "December 12 Late 2023"]
[Site "https://www.chess.com"]
[Date "2023.12.12"]
[Round "2"]
[White "Karttunen, Mika"]
[Black "Gruzman, Ilya"]
[Result "1-0"]
[Board "100"]
[TimeControl "180+1"]
[WhiteFideId "502081"]
[BlackFideId "2812703"]
[WhiteElo "2657"]
[BlackElo "2360"]
[WhiteTeam "FIN"]
[BlackTeam "ISR"]
[WhiteClock "0:00:39"]
[BlackClock "0:00:34"]

1. e4 {[%clk 0:02:59]}  c5 {[%clk 0:03:00]} 2. Nf3 {[%clk 0:02:59]}  e6 {[%clk 0:03:00]} 3. d4 {[%clk 0:02:59]}  cxd4 {[%clk 0:03:01]} 4. Nxd4 {[%clk 0:03:00]}  Nf6 {[%clk 0:03:02]} 5. Nc3 {[%clk 0:02:56]}  Nc6 {[%clk 0:03:02]} 6. a3 {[%clk 0:02:53]}  d5 {[%clk 0:02:59]} 7. exd5 {[%clk 0:02:50]}  exd5 {[%clk 0:02:58]} 8. Bb5 {[%clk 0:02:49]}  Bd7 {[%clk 0:02:58]} 9. O-O {[%clk 0:02:41]}  Be7 {[%clk 0:02:58]} 10. Re1 {[%clk 0:02:38]}  O-O {[%clk 0:02:57]} 11. Bg5 {[%clk 0:02:35]}  h6 {[%clk 0:02:51]} 12. Bh4 {[%clk 0:02:31]}  Re8 {[%clk 0:02:47]} 13. Nf3 {[%clk 0:02:09]}  Qb6 {[%clk 0:02:09]} 14. Bd3 {[%clk 0:01:33]}  Qxb2 {[%clk 0:01:43]} 15. Na4 {[%clk 0:01:33]}  Qxa1 {[%clk 0:01:23]} 16. Qxa1 {[%clk 0:01:31]}  b6 {[%clk 0:01:10]} 17. Nc3 {[%clk 0:01:27]}  Be6 {[%clk 0:01:09]} 18. Nb5 {[%clk 0:01:26]}  Rad8 {[%clk 0:01:05]} 19. Nc7 {[%clk 0:01:24]}  Rf8 {[%clk 0:01:00]} 20. Rxe6 {[%clk 0:01:22]}  fxe6 {[%clk 0:00:58]} 21. Nxe6 {[%clk 0:01:22]}  Bc5 {[%clk 0:00:57]} 22. Nxd8 {[%clk 0:01:21]}  Rxd8 {[%clk 0:00:56]} 23. Bxf6 {[%clk 0:01:21]}  gxf6 {[%clk 0:00:57]} 24. Qxf6 {[%clk 0:01:20]}  Rd6 {[%clk 0:00:58]} 25. Qf5 {[%clk 0:01:16]}  Ne7 {[%clk 0:00:55]} 26. Qh7+ {[%clk 0:01:11]}  Kf8 {[%clk 0:00:55]} 27. Ne5 {[%clk 0:01:08]}  Ke8 {[%clk 0:00:53]} 28. Qf7+ {[%clk 0:01:06]}  Kd8 {[%clk 0:00:52]} 29. Qf8+ {[%clk 0:01:06]}  Kc7 {[%clk 0:00:53]} 30. Qxe7+ {[%clk 0:01:07]}  Kb8 {[%clk 0:00:53]} 31. Qe8+ {[%clk 0:01:06]}  Kb7 {[%clk 0:00:53]} 32. Bf5 {[%clk 0:00:52]}  Ka6 {[%clk 0:00:51]} 33. Qa4+ {[%clk 0:00:42]}  Kb7 {[%clk 0:00:51]} 34. g4 {[%clk 0:00:40]}  d4 {[%clk 0:00:46]} 35. Be4+ {[%clk 0:00:40]}  Kc7 {[%clk 0:00:45]} 36. Qxa7+ {[%clk 0:00:40]}  Kd8 {[%clk 0:00:45]} 37. Nf7+ {[%clk 0:00:40]}  Ke8 {[%clk 0:00:45]} 38. Nxd6+ {[%clk 0:00:40]}  Bxd6 {[%clk 0:00:46]} 39. Bg6+ {[%clk 0:00:40]}  Kd8 {[%clk 0:00:45]} 40. Bf5 {[%clk 0:00:39]}  Bc7 {[%clk 0:00:34]} 41. Qb7 {[%clk 0:00:39]} 1-0

[Event "December 12 Late 2023"]
[Site "https://www.chess.com"]
[Date "2023.12.12"]
[Round "2"]
[White "Bernat, David"]
[Black "Golubev, Mikhail"]
[Result "0-1"]
[Board "102"]
[TimeControl "180+1"]
[WhiteFideId "2099225"]
[BlackFideId "14100983"]
[WhiteElo "2348"]
[BlackElo "2613"]
[WhiteTeam "USA"]
[BlackTeam "UKR"]
[WhiteClock "0:01:02"]
[BlackClock "0:01:55"]

1. c4 {[%clk 0:02:51]}  g6 {[%clk 0:02:59]} 2. Nc3 {[%clk 0:02:45]}  Bg7 {[%clk 0:03:00]} 3. g3 {[%clk 0:02:45]}  e5 {[%clk 0:02:59]} 4. Bg2 {[%clk 0:02:45]}  d6 {[%clk 0:02:58]} 5. d3 {[%clk 0:02:44]}  Nc6 {[%clk 0:02:58]} 6. e4 {[%clk 0:02:42]}  Nd4 {[%clk 0:02:56]} 7. Nge2 {[%clk 0:02:41]}  Nxe2 {[%clk 0:02:56]} 8. Qxe2 {[%clk 0:02:40]}  Ne7 {[%clk 0:02:56]} 9. O-O {[%clk 0:02:37]}  O-O {[%clk 0:02:56]} 10. Be3 {[%clk 0:02:30]}  Nc6 {[%clk 0:02:55]} 11. f4 {[%clk 0:02:27]}  f5 {[%clk 0:02:54]} 12. Rad1 {[%clk 0:02:24]}  Be6 {[%clk 0:02:53]} 13. Nd5 {[%clk 0:02:21]}  Qd7 {[%clk 0:02:52]} 14. a3 {[%clk 0:02:17]}  Rae8 {[%clk 0:02:51]} 15. b4 {[%clk 0:02:14]}  Nd4 {[%clk 0:02:48]} 16. Bxd4 {[%clk 0:01:52]}  exd4 {[%clk 0:02:49]} 17. b5 {[%clk 0:01:48]}  fxe4 {[%clk 0:02:38]} 18. dxe4 {[%clk 0:01:46]}  c6 {[%clk 0:02:32]} 19. Nb4 {[%clk 0:01:41]}  Bg4 {[%clk 0:02:28]} 20. Qd3 {[%clk 0:01:32]}  Bxd1 {[%clk 0:02:24]} 21. Rxd1 {[%clk 0:01:33]}  cxb5 {[%clk 0:02:14]} 22. cxb5 {[%clk 0:01:32]}  Rc8 {[%clk 0:02:15]} 23. Nc2 {[%clk 0:01:18]}  Rc3 {[%clk 0:02:11]} 24. Qd2 {[%clk 0:01:18]}  Qxb5 {[%clk 0:02:10]} 25. Nxd4 {[%clk 0:01:17]}  Qc5 {[%clk 0:02:10]} 26. Kf1 {[%clk 0:01:17]}  Bxd4 {[%clk 0:02:07]} 27. Qxd4 {[%clk 0:01:18]}  Qxd4 {[%clk 0:02:07]} 28. Rxd4 {[%clk 0:01:19]}  Rxa3 {[%clk 0:02:04]} 29. Rxd6 {[%clk 0:01:19]}  Rc8 {[%clk 0:02:02]} 30. e5 {[%clk 0:01:14]}  Rc1+ {[%clk 0:01:59]} 31. Kf2 {[%clk 0:01:10]}  Rc2+ {[%clk 0:01:56]} 32. Kg1 {[%clk 0:01:04]}  Ra1+ {[%clk 0:01:55]} 33. Bf1 {[%clk 0:01:02]}  Rcc1 {[%clk 0:01:55]} 0-1

[Event "December 12 Late 2023"]
[Site "https://www.chess.com"]
[Date "2023.12.12"]
[Round "2"]
[White "Mirzoev, Azer"]
[Black "Gerbelli Neto, Eduardo"]
[Result "1-0"]
[Board "103"]
[TimeControl "180+1"]
[WhiteFideId "13400304"]
[BlackFideId "2103281"]
[WhiteElo "2608"]
[BlackElo "2338"]
[WhiteTeam "AZE"]
[BlackTeam "BRA"]
[WhiteClock "0:00:53"]
[BlackClock "0:00:00"]

1. c4 {[%clk 0:03:00]}  c5 {[%clk 0:02:57]} 2. Nc3 {[%clk 0:03:01]}  Nf6 {[%clk 0:02:57]} 3. g3 {[%clk 0:03:01]}  d5 {[%clk 0:02:57]} 4. Bg2 {[%clk 0:03:02]}  d4 {[%clk 0:02:55]} 5. Na4 {[%clk 0:03:01]}  e5 {[%clk 0:02:54]} 6. a3 {[%clk 0:03:00]}  Nc6 {[%clk 0:02:54]} 7. d3 {[%clk 0:02:59]}  Be7 {[%clk 0:02:46]} 8. Nf3 {[%clk 0:02:59]}  O-O {[%clk 0:02:45]} 9. O-O {[%clk 0:02:58]}  h6 {[%clk 0:02:38]} 10. e4 {[%clk 0:02:58]}  Bd7 {[%clk 0:02:29]} 11. b3 {[%clk 0:02:51]}  Qc8 {[%clk 0:02:22]} 12. Nb2 {[%clk 0:02:49]}  Bh3 {[%clk 0:02:19]} 13. Bd2 {[%clk 0:02:48]}  a5 {[%clk 0:02:17]} 14. Nh4 {[%clk 0:02:42]}  Nh7 {[%clk 0:01:51]} 15. Bxh3 {[%clk 0:02:40]}  Qxh3 {[%clk 0:01:52]} 16. Nf5 {[%clk 0:02:41]}  Bg5 {[%clk 0:01:50]} 17. f4 {[%clk 0:02:38]}  exf4 {[%clk 0:01:42]} 18. gxf4 {[%clk 0:02:39]}  Bf6 {[%clk 0:01:42]} 19. Rf3 {[%clk 0:02:36]}  Qh5 {[%clk 0:01:41]} 20. Rg3 {[%clk 0:02:33]}  Qxd1+ {[%clk 0:01:40]} 21. Rxd1 {[%clk 0:02:34]}  Kh8 {[%clk 0:01:39]} 22. Na4 {[%clk 0:02:30]}  b6 {[%clk 0:01:32]} 23. Nxb6 {[%clk 0:02:22]}  Rab8 {[%clk 0:01:05]} 24. Nd7 {[%clk 0:02:18]}  Rxb3 {[%clk 0:01:05]} 25. Nxf8 {[%clk 0:02:12]}  Nxf8 {[%clk 0:01:06]} 26. e5 {[%clk 0:01:58]}  Bd8 {[%clk 0:01:02]} 27. Nxg7 {[%clk 0:01:57]}  Bh4 {[%clk 0:00:43]} 28. Rg4 {[%clk 0:01:56]}  Rxd3 {[%clk 0:00:42]} 29. Nf5 {[%clk 0:01:55]}  Be1 {[%clk 0:00:29]} 30. Rxe1 {[%clk 0:01:54]}  Rxd2 {[%clk 0:00:29]} 31. Nxh6 {[%clk 0:01:53]}  Ng6 {[%clk 0:00:21]} 32. Nxf7+ {[%clk 0:01:50]}  Kg7 {[%clk 0:00:22]} 33. f5 {[%clk 0:01:44]}  Kxf7 {[%clk 0:00:20]} 34. Rxg6 {[%clk 0:01:39]}  Ne7 {[%clk 0:00:20]} 35. e6+ {[%clk 0:01:36]}  Kf8 {[%clk 0:00:20]} 36. Rf6+ {[%clk 0:01:36]}  Ke8 {[%clk 0:00:20]} 37. Rb1 {[%clk 0:01:34]}  Nc6 {[%clk 0:00:17]} 38. Rb7 {[%clk 0:01:20]}  Ne5 {[%clk 0:00:11]} 39. Rh6 {[%clk 0:00:55]}  Nf3+ {[%clk 0:00:00]} 40. Kh1 {[%clk 0:00:53]} 1-0

[Event "December 12 Late 2023"]
[Site "https://www.chess.com"]
[Date "2023.12.12"]
[Round "2"]
[White "Bonin, Jay"]
[Black "Aghasiyev, Kamal"]
[Result "0-1"]
[Board "105"]
[TimeControl "180+1"]
[WhiteFideId "2000644"]
[BlackFideId "13402854"]
[WhiteElo "2332"]
[BlackElo "2575"]
[WhiteTeam "USA"]
[BlackTeam "AZE"]
[WhiteClock "0:01:45"]
[BlackClock "0:02:10"]

1. d4 {[%clk 0:02:59]}  d5 {[%clk 0:02:57]} 2. Nf3 {[%clk 0:02:59]}  Nf6 {[%clk 0:02:56]} 3. c4 {[%clk 0:02:58]}  e6 {[%clk 0:02:55]} 4. Nc3 {[%clk 0:02:58]}  Be7 {[%clk 0:02:53]} 5. Bg5 {[%clk 0:02:57]}  Nbd7 {[%clk 0:02:52]} 6. e3 {[%clk 0:02:56]}  O-O {[%clk 0:02:51]} 7. Rc1 {[%clk 0:02:56]}  c6 {[%clk 0:02:48]} 8. Qc2 {[%clk 0:02:54]}  h6 {[%clk 0:02:47]} 9. Bh4 {[%clk 0:02:53]}  a6 {[%clk 0:02:46]} 10. a3 {[%clk 0:02:52]}  dxc4 {[%clk 0:02:41]} 11. Bxc4 {[%clk 0:02:50]}  b5 {[%clk 0:02:37]} 12. Ba2 {[%clk 0:02:49]}  c5 {[%clk 0:02:35]} 13. dxc5 {[%clk 0:02:48]}  Nxc5 {[%clk 0:02:34]} 14. Bb1 {[%clk 0:02:43]}  Re8 {[%clk 0:02:28]} 15. Bxf6 {[%clk 0:02:38]}  Bxf6 {[%clk 0:02:28]} 16. Qh7+ {[%clk 0:02:36]}  Kf8 {[%clk 0:02:27]} 17. O-O {[%clk 0:02:36]}  Bb7 {[%clk 0:02:26]} 18. Rfd1 {[%clk 0:02:32]}  Qb6 {[%clk 0:02:24]} 19. Na4 {[%clk 0:01:45]}  bxa4 {[%clk 0:02:10]} 0-1